Workbook

Sheet Quilometragem
B1: LOG DE MILHAGEM
C11: REEMBOLSÁVEIS | E11: TOTAL
C12: MILHAS | E12: REEMBOLSO
C17: 2012-05-01 | E17: 2012-05-10
C19: PERÍODO | E19: PERÍODO
C20: INÍCIO | E20: TÉRMINO
C26: 54 | E26: 9,800
C28: REEMBOLSO | E28: COMBUSTÍVEL ANTERIOR
C29: ¢/Milha | E29: ODÔMETRO

Sheet Dados de Log
B1: LOG DE MILHAGEM
B5: DATA | C5: ATIVIDADE | D5: ODÔM. 1 | E5: LOCAL | F5: ODÔM. 2 | G5: DESTINO | H5: REEMBOLSAR | I5: GALÕES | J5: CUSTO | K5: MILHAS | L5: Milhas por Galão | M5: ¢/MILHA | N5: OBSERVAÇÕES
B6: 2012-05-01 | C6: Viagem | D6: 10,123 | E6: Chevron - Main St | F6: 10,130 | I6: 15.56 | J6: R$ 64.11 | K6: =milhas -> 7 | L6: =IF(OR(LEN(dados[[#This Row],[ODÔM. 2]]),dados[[#This Row],[ODÔM. 1]]=""),"",IFERROR(dados[[#This Row],[MILHAS]]/dados[[#This Row],[GALÕES]],"")) ->  | M6: =IF(dados[[#This Row],[Milhas por Galão]]="","",100*dados[[#This Row],[CUSTO]]/dados[[#This Row],[MILHAS]]) -> 
B7: 2012-05-01 | C7: Viagem | D7: 10,130 | E7: Office | F7: 10,200 | G7: Rua das Cerejeiras | H7: Sim | K7: =milhas -> 70 | L7: =IF(OR(LEN(dados[[#This Row],[ODÔM. 2]]),dados[[#This Row],[ODÔM. 1]]=""),"",IFERROR(dados[[#This Row],[MILHAS]]/dados[[#This Row],[GALÕES]],"")) ->  | M7: =IF(dados[[#This Row],[Milhas por Galão]]="","",100*dados[[#This Row],[CUSTO]]/dados[[#This Row],[MILHAS]]) -> 
B8: 2012-05-01 | C8: Viagem | D8: 10,200 | E8: Smithfields | F8: 10,285 | G8: Office | H8: Sim | K8: =milhas -> 85 | L8: =IF(OR(LEN(dados[[#This Row],[ODÔM. 2]]),dados[[#This Row],[ODÔM. 1]]=""),"",IFERROR(dados[[#This Row],[MILHAS]]/dados[[#This Row],[GALÕES]],"")) ->  | M8: =IF(dados[[#This Row],[Milhas por Galão]]="","",100*dados[[#This Row],[CUSTO]]/dados[[#This Row],[MILHAS]]) -> 
B9: 2012-05-02 | C9: Viagem | D9: 10,285 | E9: Office | F9: 10,450 | G9: Vinhedo de Colo | H9: Sim | K9: =milhas -> 165 | L9: =IF(OR(LEN(dados[[#This Row],[ODÔM. 2]]),dados[[#This Row],[ODÔM. 1]]=""),"",IFERROR(dados[[#This Row],[MILHAS]]/dados[[#This Row],[GALÕES]],"")) ->  | M9: =IF(dados[[#This Row],[Milhas por Galão]]="","",100*dados[[#This Row],[CUSTO]]/dados[[#This Row],[MILHAS]]) -> 
B10: 2012-05-02 | C10: Combustível | D10: 10,450 | E10: Shell | I10: 11.20 | J10: R$ 55.42 | K10: =milhas -> 650 | L10: =IF(OR(LEN(dados[[#This Row],[ODÔM. 2]]),dados[[#This Row],[ODÔM. 1]]=""),"",IFERROR(dados[[#This Row],[MILHAS]]/dados[[#This Row],[GALÕES]],"")) -> 58.0 | M10: =IF(dados[[#This Row],[Milhas por Galão]]="","",100*dados[[#This Row],[CUSTO]]/dados[[#This Row],[MILHAS]]) -> 8.5
B11: 2012-05-02 | C11: Viagem | D11: 10,500 | E11: Vinhedo de Colo | F11: 10,518 | G11: Office | H11: Sim | K11: =milhas -> 18 | L11: =IF(OR(LEN(dados[[#This Row],[ODÔM. 2]]),dados[[#This Row],[ODÔM. 1]]=""),"",IFERROR(dados[[#This Row],[MILHAS]]/dados[[#This Row],[GALÕES]],"")) ->  | M11: =IF(dados[[#This Row],[Milhas por Galão]]="","",100*dados[[#This Row],[CUSTO]]/dados[[#This Row],[MILHAS]]) -> 
B12: 2012-05-03 | C12: Viagem | D12: 10,518 | E12: Office | F12: 10,745 | G12: Office | H12: Sim | K12: =milhas -> 227 | L12: =IF(OR(LEN(dados[[#This Row],[ODÔM. 2]]),dados[[#This Row],[ODÔM. 1]]=""),"",IFERROR(dados[[#This Row],[MILHAS]]/dados[[#This Row],[GALÕES]],"")) ->  | M12: =IF(dados[[#This Row],[Milhas por Galão]]="","",100*dados[[#This Row],[CUSTO]]/dados[[#This Row],[MILHAS]]) -> 
B13: 2012-05-04 | C13: Combustível | D13: 10,745 | E13: Chevron - Main St | I13: 16.60 | J13: R$ 69.24 | K13: =milhas -> 295 | L13: =IF(OR(LEN(dados[[#This Row],[ODÔM. 2]]),dados[[#This Row],[ODÔM. 1]]=""),"",IFERROR(dados[[#This Row],[MILHAS]]/dados[[#This Row],[GALÕES]],"")) -> 17.8 | M13: =IF(dados[[#This Row],[Milhas por Galão]]="","",100*dados[[#This Row],[CUSTO]]/dados[[#This Row],[MILHAS]]) -> 23.5
B14: 2012-05-04 | C14: Viagem | D14: 10,745 | E14: Office | F14: 10,800 | G14: Porterville | H14: Sim | K14: =milhas -> 55 | L14: =IF(OR(LEN(dados[[#This Row],[ODÔM. 2]]),dados[[#This Row],[ODÔM. 1]]=""),"",IFERROR(dados[[#This Row],[MILHAS]]/dados[[#This Row],[GALÕES]],"")) ->  | M14: =IF(dados[[#This Row],[Milhas por Galão]]="","",100*dados[[#This Row],[CUSTO]]/dados[[#This Row],[MILHAS]]) -> 
B15: 2012-05-04 | C15: Viagem | D15: 10,800 | E15: Porterville | F15: 10,875 | G15: Office | H15: Sim | K15: =milhas -> 75 | L15: =IF(OR(LEN(dados[[#This Row],[ODÔM. 2]]),dados[[#This Row],[ODÔM. 1]]=""),"",IFERROR(dados[[#This Row],[MILHAS]]/dados[[#This Row],[GALÕES]],"")) ->  | M15: =IF(dados[[#This Row],[Milhas por Galão]]="","",100*dados[[#This Row],[CUSTO]]/dados[[#This Row],[MILHAS]]) -> 
B16: 2012-05-07 | C16: Viagem | D16: 10,875 | E16: Office | F16: 10,921 | G16: Rua das Cerejeiras | H16: Sim | K16: =milhas -> 46 | L16: =IF(OR(LEN(dados[[#This Row],[ODÔM. 2]]),dados[[#This Row],[ODÔM. 1]]=""),"",IFERROR(dados[[#This Row],[MILHAS]]/dados[[#This Row],[GALÕES]],"")) ->  | M16: =IF(dados[[#This Row],[Milhas por Galão]]="","",100*dados[[#This Row],[CUSTO]]/dados[[#This Row],[MILHAS]]) -> 
B17: 2012-05-07 | C17: Viagem | D17: 10,921 | E17: Smithfields | F17: 10,969 | G17: Office | H17: Sim | K17: =milhas -> 48 | L17: =IF(OR(LEN(dados[[#This Row],[ODÔM. 2]]),dados[[#This Row],[ODÔM. 1]]=""),"",IFERROR(dados[[#This Row],[MILHAS]]/dados[[#This Row],[GALÕES]],"")) ->  | M17: =IF(dados[[#This Row],[Milhas por Galão]]="","",100*dados[[#This Row],[CUSTO]]/dados[[#This Row],[MILHAS]]) -> 
B18: 2012-05-09 | C18: Viagem | D18: 10,969 | E18: Office | F18: 11,000 | G18: Riverside | H18: Sim | K18: =milhas -> 31 | L18: =IF(OR(LEN(dados[[#This Row],[ODÔM. 2]]),dados[[#This Row],[ODÔM. 1]]=""),"",IFERROR(dados[[#This Row],[MILHAS]]/dados[[#This Row],[GALÕES]],"")) ->  | M18: =IF(dados[[#This Row],[Milhas por Galão]]="","",100*dados[[#This Row],[CUSTO]]/dados[[#This Row],[MILHAS]]) -> 
B19: 2012-05-09 | C19: Viagem | D19: 11,000 | E19: Riverside | F19: 11,100 | G19: Casa | H19: Não | K19: =milhas -> 100 | L19: =IF(OR(LEN(dados[[#This Row],[ODÔM. 2]]),dados[[#This Row],[ODÔM. 1]]=""),"",IFERROR(dados[[#This Row],[MILHAS]]/dados[[#This Row],[GALÕES]],"")) ->  | M19: =IF(dados[[#This Row],[Milhas por Galão]]="","",100*dados[[#This Row],[CUSTO]]/dados[[#This Row],[MILHAS]]) -> 

Sheet cálculos (hidden)
A1: *** Esta planilha deve permanecer oculta ***
I6: =OFFSET(I9,,segundoEixo="Preço do Combustível") -> ¢/Milha
M7: 2
H8: Viagem | I8: Combustível | J8: Combustível | L8: Segundo Eixo: | M8: =REPT("Milhas por Galão",M7=1)&REPT("Preço do Combustível",M7=2) -> Preço do Combustível
H9: Milhas Dirigidas | I9: Milhas por Galão | J9: ¢/Milha
C10: Milhas Reembolsáveis: | D10: =SUMIFS(dados[MILHAS],dados[REEMBOLSAR],"Sim",dados[DATA],">="&Iníciodoperíodo,dados[DATA],"<="&Finaldoperíodo) -> 820 | F10: 1 | G10: =Iníciodoperíodo -> 2012-05-01 | H10: =SUMIFS(dados[MILHAS],dados[DATA],G10,dados[ATIVIDADE],$H$8) -> 162 | I10: =IFERROR(AVERAGEIFS(dados[Milhas por Galão],dados[DATA],G10,dados[ATIVIDADE],$I$8),NA()) ->  | J10: =IFERROR(AVERAGEIFS(dados[¢/MILHA],dados[DATA],G10,dados[ATIVIDADE],$J$8),NA()) -> 
C11: Total para Reembolso: | D11: =D10*ReembolsoporMilha/100 -> R$ 442.80 | F11: 2 | G11: =G10+1 -> 2012-05-02 | H11: =SUMIFS(dados[MILHAS],dados[DATA],G11,dados[ATIVIDADE],$H$8) -> 183 | I11: =IFERROR(AVERAGEIFS(dados[Milhas por Galão],dados[DATA],G11,dados[ATIVIDADE],$I$8),NA()) -> 58.0 | J11: =IFERROR(AVERAGEIFS(dados[¢/MILHA],dados[DATA],G11,dados[ATIVIDADE],$J$8),NA()) -> 8.5
F12: 3 | G12: 2012-05-03 | H12: =SUMIFS(dados[MILHAS],dados[DATA],G12,dados[ATIVIDADE],$H$8) -> 227 | I12: =IFERROR(AVERAGEIFS(dados[Milhas por Galão],dados[DATA],G12,dados[ATIVIDADE],$I$8),NA()) ->  | J12: =IFERROR(AVERAGEIFS(dados[¢/MILHA],dados[DATA],G12,dados[ATIVIDADE],$J$8),NA()) -> 
F13: 4 | G13: 2012-05-04 | H13: =SUMIFS(dados[MILHAS],dados[DATA],G13,dados[ATIVIDADE],$H$8) -> 130 | I13: =IFERROR(AVERAGEIFS(dados[Milhas por Galão],dados[DATA],G13,dados[ATIVIDADE],$I$8),NA()) -> 17.8 | J13: =IFERROR(AVERAGEIFS(dados[¢/MILHA],dados[DATA],G13,dados[ATIVIDADE],$J$8),NA()) -> 23.5
F14: 5 | G14: 2012-05-05 | H14: =SUMIFS(dados[MILHAS],dados[DATA],G14,dados[ATIVIDADE],$H$8) -> 0 | I14: =IFERROR(AVERAGEIFS(dados[Milhas por Galão],dados[DATA],G14,dados[ATIVIDADE],$I$8),NA()) ->  | J14: =IFERROR(AVERAGEIFS(dados[¢/MILHA],dados[DATA],G14,dados[ATIVIDADE],$J$8),NA()) -> 
F15: 6 | G15: 2012-05-06 | H15: =SUMIFS(dados[MILHAS],dados[DATA],G15,dados[ATIVIDADE],$H$8) -> 0 | I15: =IFERROR(AVERAGEIFS(dados[Milhas por Galão],dados[DATA],G15,dados[ATIVIDADE],$I$8),NA()) ->  | J15: =IFERROR(AVERAGEIFS(dados[¢/MILHA],dados[DATA],G15,dados[ATIVIDADE],$J$8),NA()) -> 
F16: 7 | G16: 2012-05-07 | H16: =SUMIFS(dados[MILHAS],dados[DATA],G16,dados[ATIVIDADE],$H$8) -> 94 | I16: =IFERROR(AVERAGEIFS(dados[Milhas por Galão],dados[DATA],G16,dados[ATIVIDADE],$I$8),NA()) ->  | J16: =IFERROR(AVERAGEIFS(dados[¢/MILHA],dados[DATA],G16,dados[ATIVIDADE],$J$8),NA()) -> 
F17: 8 | G17: 2012-05-08 | H17: =SUMIFS(dados[MILHAS],dados[DATA],G17,dados[ATIVIDADE],$H$8) -> 0 | I17: =IFERROR(AVERAGEIFS(dados[Milhas por Galão],dados[DATA],G17,dados[ATIVIDADE],$I$8),NA()) ->  | J17: =IFERROR(AVERAGEIFS(dados[¢/MILHA],dados[DATA],G17,dados[ATIVIDADE],$J$8),NA()) -> 
F18: 9 | G18: 2012-05-09 | H18: =SUMIFS(dados[MILHAS],dados[DATA],G18,dados[ATIVIDADE],$H$8) -> 131 | I18: =IFERROR(AVERAGEIFS(dados[Milhas por Galão],dados[DATA],G18,dados[ATIVIDADE],$I$8),NA()) ->  | J18: =IFERROR(AVERAGEIFS(dados[¢/MILHA],dados[DATA],G18,dados[ATIVIDADE],$J$8),NA()) -> 
F19: 10 | G19: 2012-05-10 | H19: =SUMIFS(dados[MILHAS],dados[DATA],G19,dados[ATIVIDADE],$H$8) -> 0 | I19: =IFERROR(AVERAGEIFS(dados[Milhas por Galão],dados[DATA],G19,dados[ATIVIDADE],$I$8),NA()) ->  | J19: =IFERROR(AVERAGEIFS(dados[¢/MILHA],dados[DATA],G19,dados[ATIVIDADE],$J$8),NA()) -> 
F20: 11 | G20: 2012-05-11 | H20: =SUMIFS(dados[MILHAS],dados[DATA],G20,dados[ATIVIDADE],$H$8) -> 0 | I20: =IFERROR(AVERAGEIFS(dados[Milhas por Galão],dados[DATA],G20,dados[ATIVIDADE],$I$8),NA()) ->  | J20: =IFERROR(AVERAGEIFS(dados[¢/MILHA],dados[DATA],G20,dados[ATIVIDADE],$J$8),NA()) -> 
F21: 12 | G21: 2012-05-12 | H21: =SUMIFS(dados[MILHAS],dados[DATA],G21,dados[ATIVIDADE],$H$8) -> 0 | I21: =IFERROR(AVERAGEIFS(dados[Milhas por Galão],dados[DATA],G21,dados[ATIVIDADE],$I$8),NA()) ->  | J21: =IFERROR(AVERAGEIFS(dados[¢/MILHA],dados[DATA],G21,dados[ATIVIDADE],$J$8),NA()) -> 
F22: 13 | G22: 2012-05-13 | H22: =SUMIFS(dados[MILHAS],dados[DATA],G22,dados[ATIVIDADE],$H$8) -> 0 | I22: =IFERROR(AVERAGEIFS(dados[Milhas por Galão],dados[DATA],G22,dados[ATIVIDADE],$I$8),NA()) ->  | J22: =IFERROR(AVERAGEIFS(dados[¢/MILHA],dados[DATA],G22,dados[ATIVIDADE],$J$8),NA()) -> 
F23: 14 | G23: 2012-05-14 | H23: =SUMIFS(dados[MILHAS],dados[DATA],G23,dados[ATIVIDADE],$H$8) -> 0 | I23: =IFERROR(AVERAGEIFS(dados[Milhas por Galão],dados[DATA],G23,dados[ATIVIDADE],$I$8),NA()) ->  | J23: =IFERROR(AVERAGEIFS(dados[¢/MILHA],dados[DATA],G23,dados[ATIVIDADE],$J$8),NA()) -> 
F24: 15 | G24: 2012-05-15 | H24: =SUMIFS(dados[MILHAS],dados[DATA],G24,dados[ATIVIDADE],$H$8) -> 0 | I24: =IFERROR(AVERAGEIFS(dados[Milhas por Galão],dados[DATA],G24,dados[ATIVIDADE],$I$8),NA()) ->  | J24: =IFERROR(AVERAGEIFS(dados[¢/MILHA],dados[DATA],G24,dados[ATIVIDADE],$J$8),NA()) -> 
F25: 16 | G25: 2012-05-16 | H25: =SUMIFS(dados[MILHAS],dados[DATA],G25,dados[ATIVIDADE],$H$8) -> 0 | I25: =IFERROR(AVERAGEIFS(dados[Milhas por Galão],dados[DATA],G25,dados[ATIVIDADE],$I$8),NA()) ->  | J25: =IFERROR(AVERAGEIFS(dados[¢/MILHA],dados[DATA],G25,dados[ATIVIDADE],$J$8),NA()) -> 
F26: 17 | G26: 2012-05-17 | H26: =SUMIFS(dados[MILHAS],dados[DATA],G26,dados[ATIVIDADE],$H$8) -> 0 | I26: =IFERROR(AVERAGEIFS(dados[Milhas por Galão],dados[DATA],G26,dados[ATIVIDADE],$I$8),NA()) ->  | J26: =IFERROR(AVERAGEIFS(dados[¢/MILHA],dados[DATA],G26,dados[ATIVIDADE],$J$8),NA()) -> 
F27: 18 | G27: 2012-05-18 | H27: =SUMIFS(dados[MILHAS],dados[DATA],G27,dados[ATIVIDADE],$H$8) -> 0 | I27: =IFERROR(AVERAGEIFS(dados[Milhas por Galão],dados[DATA],G27,dados[ATIVIDADE],$I$8),NA()) ->  | J27: =IFERROR(AVERAGEIFS(dados[¢/MILHA],dados[DATA],G27,dados[ATIVIDADE],$J$8),NA()) -> 
F28: 19 | G28: 2012-05-19 | H28: =SUMIFS(dados[MILHAS],dados[DATA],G28,dados[ATIVIDADE],$H$8) -> 0 | I28: =IFERROR(AVERAGEIFS(dados[Milhas por Galão],dados[DATA],G28,dados[ATIVIDADE],$I$8),NA()) ->  | J28: =IFERROR(AVERAGEIFS(dados[¢/MILHA],dados[DATA],G28,dados[ATIVIDADE],$J$8),NA()) -> 
F29: 20 | G29: 2012-05-20 | H29: =SUMIFS(dados[MILHAS],dados[DATA],G29,dados[ATIVIDADE],$H$8) -> 0 | I29: =IFERROR(AVERAGEIFS(dados[Milhas por Galão],dados[DATA],G29,dados[ATIVIDADE],$I$8),NA()) ->  | J29: =IFERROR(AVERAGEIFS(dados[¢/MILHA],dados[DATA],G29,dados[ATIVIDADE],$J$8),NA()) -> 
F30: 21 | G30: 2012-05-21 | H30: =SUMIFS(dados[MILHAS],dados[DATA],G30,dados[ATIVIDADE],$H$8) -> 0 | I30: =IFERROR(AVERAGEIFS(dados[Milhas por Galão],dados[DATA],G30,dados[ATIVIDADE],$I$8),NA()) ->  | J30: =IFERROR(AVERAGEIFS(dados[¢/MILHA],dados[DATA],G30,dados[ATIVIDADE],$J$8),NA()) -> 
F31: 22 | G31: 2012-05-22 | H31: =SUMIFS(dados[MILHAS],dados[DATA],G31,dados[ATIVIDADE],$H$8) -> 0 | I31: =IFERROR(AVERAGEIFS(dados[Milhas por Galão],dados[DATA],G31,dados[ATIVIDADE],$I$8),NA()) ->  | J31: =IFERROR(AVERAGEIFS(dados[¢/MILHA],dados[DATA],G31,dados[ATIVIDADE],$J$8),NA()) -> 
F32: 23 | G32: 2012-05-23 | H32: =SUMIFS(dados[MILHAS],dados[DATA],G32,dados[ATIVIDADE],$H$8) -> 0 | I32: =IFERROR(AVERAGEIFS(dados[Milhas por Galão],dados[DATA],G32,dados[ATIVIDADE],$I$8),NA()) ->  | J32: =IFERROR(AVERAGEIFS(dados[¢/MILHA],dados[DATA],G32,dados[ATIVIDADE],$J$8),NA()) -> 
F33: 24 | G33: 2012-05-24 | H33: =SUMIFS(dados[MILHAS],dados[DATA],G33,dados[ATIVIDADE],$H$8) -> 0 | I33: =IFERROR(AVERAGEIFS(dados[Milhas por Galão],dados[DATA],G33,dados[ATIVIDADE],$I$8),NA()) ->  | J33: =IFERROR(AVERAGEIFS(dados[¢/MILHA],dados[DATA],G33,dados[ATIVIDADE],$J$8),NA()) -> 
F34: 25 | G34: 2012-05-25 | H34: =SUMIFS(dados[MILHAS],dados[DATA],G34,dados[ATIVIDADE],$H$8) -> 0 | I34: =IFERROR(AVERAGEIFS(dados[Milhas por Galão],dados[DATA],G34,dados[ATIVIDADE],$I$8),NA()) ->  | J34: =IFERROR(AVERAGEIFS(dados[¢/MILHA],dados[DATA],G34,dados[ATIVIDADE],$J$8),NA()) -> 
F35: 26 | G35: 2012-05-26 | H35: =SUMIFS(dados[MILHAS],dados[DATA],G35,dados[ATIVIDADE],$H$8) -> 0 | I35: =IFERROR(AVERAGEIFS(dados[Milhas por Galão],dados[DATA],G35,dados[ATIVIDADE],$I$8),NA()) ->  | J35: =IFERROR(AVERAGEIFS(dados[¢/MILHA],dados[DATA],G35,dados[ATIVIDADE],$J$8),NA()) -> 
F36: 27 | G36: 2012-05-27 | H36: =SUMIFS(dados[MILHAS],dados[DATA],G36,dados[ATIVIDADE],$H$8) -> 0 | I36: =IFERROR(AVERAGEIFS(dados[Milhas por Galão],dados[DATA],G36,dados[ATIVIDADE],$I$8),NA()) ->  | J36: =IFERROR(AVERAGEIFS(dados[¢/MILHA],dados[DATA],G36,dados[ATIVIDADE],$J$8),NA()) -> 
F37: 28 | G37: 2012-05-28 | H37: =SUMIFS(dados[MILHAS],dados[DATA],G37,dados[ATIVIDADE],$H$8) -> 0 | I37: =IFERROR(AVERAGEIFS(dados[Milhas por Galão],dados[DATA],G37,dados[ATIVIDADE],$I$8),NA()) ->  | J37: =IFERROR(AVERAGEIFS(dados[¢/MILHA],dados[DATA],G37,dados[ATIVIDADE],$J$8),NA()) -> 
F38: 29 | G38: 2012-05-29 | H38: =SUMIFS(dados[MILHAS],dados[DATA],G38,dados[ATIVIDADE],$H$8) -> 0 | I38: =IFERROR(AVERAGEIFS(dados[Milhas por Galão],dados[DATA],G38,dados[ATIVIDADE],$I$8),NA()) ->  | J38: =IFERROR(AVERAGEIFS(dados[¢/MILHA],dados[DATA],G38,dados[ATIVIDADE],$J$8),NA()) -> 
F39: 30 | G39: 2012-05-30 | H39: =SUMIFS(dados[MILHAS],dados[DATA],G39,dados[ATIVIDADE],$H$8) -> 0 | I39: =IFERROR(AVERAGEIFS(dados[Milhas por Galão],dados[DATA],G39,dados[ATIVIDADE],$I$8),NA()) ->  | J39: =IFERROR(AVERAGEIFS(dados[¢/MILHA],dados[DATA],G39,dados[ATIVIDADE],$J$8),NA()) -> 
F40: 31 | G40: 2012-05-31 | H40: =SUMIFS(dados[MILHAS],dados[DATA],G40,dados[ATIVIDADE],$H$8) -> 0 | I40: =IFERROR(AVERAGEIFS(dados[Milhas por Galão],dados[DATA],G40,dados[ATIVIDADE],$I$8),NA()) ->  | J40: =IFERROR(AVERAGEIFS(dados[¢/MILHA],dados[DATA],G40,dados[ATIVIDADE],$J$8),NA()) -> 
F41: 32 | G41: 2012-06-01 | H41: =SUMIFS(dados[MILHAS],dados[DATA],G41,dados[ATIVIDADE],$H$8) -> 0 | I41: =IFERROR(AVERAGEIFS(dados[Milhas por Galão],dados[DATA],G41,dados[ATIVIDADE],$I$8),NA()) ->  | J41: =IFERROR(AVERAGEIFS(dados[¢/MILHA],dados[DATA],G41,dados[ATIVIDADE],$J$8),NA()) -> 
F42: 33 | G42: 2012-06-02 | H42: =SUMIFS(dados[MILHAS],dados[DATA],G42,dados[ATIVIDADE],$H$8) -> 0 | I42: =IFERROR(AVERAGEIFS(dados[Milhas por Galão],dados[DATA],G42,dados[ATIVIDADE],$I$8),NA()) ->  | J42: =IFERROR(AVERAGEIFS(dados[¢/MILHA],dados[DATA],G42,dados[ATIVIDADE],$J$8),NA()) -> 
F43: 34 | G43: =G42+1 -> 2012-06-03 | H43: =SUMIFS(dados[MILHAS],dados[DATA],G43,dados[ATIVIDADE],$H$8) -> 0 | I43: =IFERROR(AVERAGEIFS(dados[Milhas por Galão],dados[DATA],G43,dados[ATIVIDADE],$I$8),NA()) ->  | J43: =IFERROR(AVERAGEIFS(dados[¢/MILHA],dados[DATA],G43,dados[ATIVIDADE],$J$8),NA()) -> 
F44: 35 | G44: 2012-06-04 | H44: =SUMIFS(dados[MILHAS],dados[DATA],G44,dados[ATIVIDADE],$H$8) -> 0 | I44: =IFERROR(AVERAGEIFS(dados[Milhas por Galão],dados[DATA],G44,dados[ATIVIDADE],$I$8),NA()) ->  | J44: =IFERROR(AVERAGEIFS(dados[¢/MILHA],dados[DATA],G44,dados[ATIVIDADE],$J$8),NA()) -> 
F45: 36 | G45: 2012-06-05 | H45: =SUMIFS(dados[MILHAS],dados[DATA],G45,dados[ATIVIDADE],$H$8) -> 0 | I45: =IFERROR(AVERAGEIFS(dados[Milhas por Galão],dados[DATA],G45,dados[ATIVIDADE],$I$8),NA()) ->  | J45: =IFERROR(AVERAGEIFS(dados[¢/MILHA],dados[DATA],G45,dados[ATIVIDADE],$J$8),NA()) -> 
F46: 37 | G46: 2012-06-06 | H46: =SUMIFS(dados[MILHAS],dados[DATA],G46,dados[ATIVIDADE],$H$8) -> 0 | I46: =IFERROR(AVERAGEIFS(dados[Milhas por Galão],dados[DATA],G46,dados[ATIVIDADE],$I$8),NA()) ->  | J46: =IFERROR(AVERAGEIFS(dados[¢/MILHA],dados[DATA],G46,dados[ATIVIDADE],$J$8),NA()) -> 
F47: 38 | G47: 2012-06-07 | H47: =SUMIFS(dados[MILHAS],dados[DATA],G47,dados[ATIVIDADE],$H$8) -> 0 | I47: =IFERROR(AVERAGEIFS(dados[Milhas por Galão],dados[DATA],G47,dados[ATIVIDADE],$I$8),NA()) ->  | J47: =IFERROR(AVERAGEIFS(dados[¢/MILHA],dados[DATA],G47,dados[ATIVIDADE],$J$8),NA()) -> 
F48: 39 | G48: 2012-06-08 | H48: =SUMIFS(dados[MILHAS],dados[DATA],G48,dados[ATIVIDADE],$H$8) -> 0 | I48: =IFERROR(AVERAGEIFS(dados[Milhas por Galão],dados[DATA],G48,dados[ATIVIDADE],$I$8),NA()) ->  | J48: =IFERROR(AVERAGEIFS(dados[¢/MILHA],dados[DATA],G48,dados[ATIVIDADE],$J$8),NA()) -> 
F49: 40 | G49: 2012-06-09 | H49: =SUMIFS(dados[MILHAS],dados[DATA],G49,dados[ATIVIDADE],$H$8) -> 0 | I49: =IFERROR(AVERAGEIFS(dados[Milhas por Galão],dados[DATA],G49,dados[ATIVIDADE],$I$8),NA()) ->  | J49: =IFERROR(AVERAGEIFS(dados[¢/MILHA],dados[DATA],G49,dados[ATIVIDADE],$J$8),NA()) -> 
F50: 41 | G50: 2012-06-10 | H50: =SUMIFS(dados[MILHAS],dados[DATA],G50,dados[ATIVIDADE],$H$8) -> 0 | I50: =IFERROR(AVERAGEIFS(dados[Milhas por Galão],dados[DATA],G50,dados[ATIVIDADE],$I$8),NA()) ->  | J50: =IFERROR(AVERAGEIFS(dados[¢/MILHA],dados[DATA],G50,dados[ATIVIDADE],$J$8),NA()) -> 
F51: 42 | G51: 2012-06-11 | H51: =SUMIFS(dados[MILHAS],dados[DATA],G51,dados[ATIVIDADE],$H$8) -> 0 | I51: =IFERROR(AVERAGEIFS(dados[Milhas por Galão],dados[DATA],G51,dados[ATIVIDADE],$I$8),NA()) ->  | J51: =IFERROR(AVERAGEIFS(dados[¢/MILHA],dados[DATA],G51,dados[ATIVIDADE],$J$8),NA()) -> 
F52: 43 | G52: 2012-06-12 | H52: =SUMIFS(dados[MILHAS],dados[DATA],G52,dados[ATIVIDADE],$H$8) -> 0 | I52: =IFERROR(AVERAGEIFS(dados[Milhas por Galão],dados[DATA],G52,dados[ATIVIDADE],$I$8),NA()) ->  | J52: =IFERROR(AVERAGEIFS(dados[¢/MILHA],dados[DATA],G52,dados[ATIVIDADE],$J$8),NA()) -> 
F53: 44 | G53: 2012-06-13 | H53: =SUMIFS(dados[MILHAS],dados[DATA],G53,dados[ATIVIDADE],$H$8) -> 0 | I53: =IFERROR(AVERAGEIFS(dados[Milhas por Galão],dados[DATA],G53,dados[ATIVIDADE],$I$8),NA()) ->  | J53: =IFERROR(AVERAGEIFS(dados[¢/MILHA],dados[DATA],G53,dados[ATIVIDADE],$J$8),NA()) -> 
F54: 45 | G54: 2012-06-14 | H54: =SUMIFS(dados[MILHAS],dados[DATA],G54,dados[ATIVIDADE],$H$8) -> 0 | I54: =IFERROR(AVERAGEIFS(dados[Milhas por Galão],dados[DATA],G54,dados[ATIVIDADE],$I$8),NA()) ->  | J54: =IFERROR(AVERAGEIFS(dados[¢/MILHA],dados[DATA],G54,dados[ATIVIDADE],$J$8),NA()) -> 
F55: 46 | G55: 2012-06-15 | H55: =SUMIFS(dados[MILHAS],dados[DATA],G55,dados[ATIVIDADE],$H$8) -> 0 | I55: =IFERROR(AVERAGEIFS(dados[Milhas por Galão],dados[DATA],G55,dados[ATIVIDADE],$I$8),NA()) ->  | J55: =IFERROR(AVERAGEIFS(dados[¢/MILHA],dados[DATA],G55,dados[ATIVIDADE],$J$8),NA()) -> 
F56: 47 | G56: 2012-06-16 | H56: =SUMIFS(dados[MILHAS],dados[DATA],G56,dados[ATIVIDADE],$H$8) -> 0 | I56: =IFERROR(AVERAGEIFS(dados[Milhas por Galão],dados[DATA],G56,dados[ATIVIDADE],$I$8),NA()) ->  | J56: =IFERROR(AVERAGEIFS(dados[¢/MILHA],dados[DATA],G56,dados[ATIVIDADE],$J$8),NA()) -> 
F57: 48 | G57: 2012-06-17 | H57: =SUMIFS(dados[MILHAS],dados[DATA],G57,dados[ATIVIDADE],$H$8) -> 0 | I57: =IFERROR(AVERAGEIFS(dados[Milhas por Galão],dados[DATA],G57,dados[ATIVIDADE],$I$8),NA()) ->  | J57: =IFERROR(AVERAGEIFS(dados[¢/MILHA],dados[DATA],G57,dados[ATIVIDADE],$J$8),NA()) -> 
F58: 49 | G58: 2012-06-18 | H58: =SUMIFS(dados[MILHAS],dados[DATA],G58,dados[ATIVIDADE],$H$8) -> 0 | I58: =IFERROR(AVERAGEIFS(dados[Milhas por Galão],dados[DATA],G58,dados[ATIVIDADE],$I$8),NA()) ->  | J58: =IFERROR(AVERAGEIFS(dados[¢/MILHA],dados[DATA],G58,dados[ATIVIDADE],$J$8),NA()) -> 
F59: 50 | G59: 2012-06-19 | H59: =SUMIFS(dados[MILHAS],dados[DATA],G59,dados[ATIVIDADE],$H$8) -> 0 | I59: =IFERROR(AVERAGEIFS(dados[Milhas por Galão],dados[DATA],G59,dados[ATIVIDADE],$I$8),NA()) ->  | J59: =IFERROR(AVERAGEIFS(dados[¢/MILHA],dados[DATA],G59,dados[ATIVIDADE],$J$8),NA()) -> 
F60: 51 | G60: 2012-06-20 | H60: =SUMIFS(dados[MILHAS],dados[DATA],G60,dados[ATIVIDADE],$H$8) -> 0 | I60: =IFERROR(AVERAGEIFS(dados[Milhas por Galão],dados[DATA],G60,dados[ATIVIDADE],$I$8),NA()) ->  | J60: =IFERROR(AVERAGEIFS(dados[¢/MILHA],dados[DATA],G60,dados[ATIVIDADE],$J$8),NA()) -> 
F61: 52 | G61: 2012-06-21 | H61: =SUMIFS(dados[MILHAS],dados[DATA],G61,dados[ATIVIDADE],$H$8) -> 0 | I61: =IFERROR(AVERAGEIFS(dados[Milhas por Galão],dados[DATA],G61,dados[ATIVIDADE],$I$8),NA()) ->  | J61: =IFERROR(AVERAGEIFS(dados[¢/MILHA],dados[DATA],G61,dados[ATIVIDADE],$J$8),NA()) -> 
F62: 53 | G62: 2012-06-22 | H62: =SUMIFS(dados[MILHAS],dados[DATA],G62,dados[ATIVIDADE],$H$8) -> 0 | I62: =IFERROR(AVERAGEIFS(dados[Milhas por Galão],dados[DATA],G62,dados[ATIVIDADE],$I$8),NA()) ->  | J62: =IFERROR(AVERAGEIFS(dados[¢/MILHA],dados[DATA],G62,dados[ATIVIDADE],$J$8),NA()) -> 
F63: 54 | G63: 2012-06-23 | H63: =SUMIFS(dados[MILHAS],dados[DATA],G63,dados[ATIVIDADE],$H$8) -> 0 | I63: =IFERROR(AVERAGEIFS(dados[Milhas por Galão],dados[DATA],G63,dados[ATIVIDADE],$I$8),NA()) ->  | J63: =IFERROR(AVERAGEIFS(dados[¢/MILHA],dados[DATA],G63,dados[ATIVIDADE],$J$8),NA()) -> 
F64: 55 | G64: 2012-06-24 | H64: =SUMIFS(dados[MILHAS],dados[DATA],G64,dados[ATIVIDADE],$H$8) -> 0 | I64: =IFERROR(AVERAGEIFS(dados[Milhas por Galão],dados[DATA],G64,dados[ATIVIDADE],$I$8),NA()) ->  | J64: =IFERROR(AVERAGEIFS(dados[¢/MILHA],dados[DATA],G64,dados[ATIVIDADE],$J$8),NA()) -> 
F65: 56 | G65: 2012-06-25 | H65: =SUMIFS(dados[MILHAS],dados[DATA],G65,dados[ATIVIDADE],$H$8) -> 0 | I65: =IFERROR(AVERAGEIFS(dados[Milhas por Galão],dados[DATA],G65,dados[ATIVIDADE],$I$8),NA()) ->  | J65: =IFERROR(AVERAGEIFS(dados[¢/MILHA],dados[DATA],G65,dados[ATIVIDADE],$J$8),NA()) -> 
F66: 57 | G66: 2012-06-26 | H66: =SUMIFS(dados[MILHAS],dados[DATA],G66,dados[ATIVIDADE],$H$8) -> 0 | I66: =IFERROR(AVERAGEIFS(dados[Milhas por Galão],dados[DATA],G66,dados[ATIVIDADE],$I$8),NA()) ->  | J66: =IFERROR(AVERAGEIFS(dados[¢/MILHA],dados[DATA],G66,dados[ATIVIDADE],$J$8),NA()) -> 
F67: 58 | G67: 2012-06-27 | H67: =SUMIFS(dados[MILHAS],dados[DATA],G67,dados[ATIVIDADE],$H$8) -> 0 | I67: =IFERROR(AVERAGEIFS(dados[Milhas por Galão],dados[DATA],G67,dados[ATIVIDADE],$I$8),NA()) ->  | J67: =IFERROR(AVERAGEIFS(dados[¢/MILHA],dados[DATA],G67,dados[ATIVIDADE],$J$8),NA()) -> 
F68: 59 | G68: 2012-06-28 | H68: =SUMIFS(dados[MILHAS],dados[DATA],G68,dados[ATIVIDADE],$H$8) -> 0 | I68: =IFERROR(AVERAGEIFS(dados[Milhas por Galão],dados[DATA],G68,dados[ATIVIDADE],$I$8),NA()) ->  | J68: =IFERROR(AVERAGEIFS(dados[¢/MILHA],dados[DATA],G68,dados[ATIVIDADE],$J$8),NA()) -> 
F69: 60 | G69: 2012-06-29 | H69: =SUMIFS(dados[MILHAS],dados[DATA],G69,dados[ATIVIDADE],$H$8) -> 0 | I69: =IFERROR(AVERAGEIFS(dados[Milhas por Galão],dados[DATA],G69,dados[ATIVIDADE],$I$8),NA()) ->  | J69: =IFERROR(AVERAGEIFS(dados[¢/MILHA],dados[DATA],G69,dados[ATIVIDADE],$J$8),NA()) -> 
